fUSD/lending_fUSD_20240624
["ID","MTS","AMOUNT","RATE_DAILY","PERIOD"]
[330232667,1719196288621,-500.0,0.00021917,2]
[330232668,1719196288631,-3129.8,0.00021917,2]
[330232669,1719196288640,-500.0,0.00021917,2]
[330232670,1719196288650,-500.0,0.00021917,2]
[330232671,1719196288659,-500.0,0.00021917,2]
[330232672,1719196288669,-3129.8,0.00021917,2]
[330232673,1719196288679,-500.0,0.00021917,2]
[330232674,1719196288689,-512.11721858,0.00021917,2]
[330232675,1719196288698,-509.39753626,0.00021917,2]
[330232676,1719196288708,-3129.8,0.00021917,2]
[330232677,1719196288718,-1006.77,0.00021917,2]
[330232678,1719196288727,-510.40577142,0.00021917,2]
[330232679,1719196288737,-3129.8,0.00021917,2]
[330232680,1719196288746,-509.03296482,0.00021917,2]
[330232681,1719196288756,-1006.77,0.00021917,2]
[330232682,1719196288767,-500.0,0.00021917,2]
[330232683,1719196288780,-3129.8,0.00021917,2]
[330232684,1719196288790,-1006.77,0.00021917,2]
[330232685,1719196288799,-2425.99,0.00021917,2]
[330232686,1719196288809,-500.0,0.00021917,2]
[330232687,1719196288826,-3129.8,0.00021917,2]
[330232688,1719196288844,-502.04120754,0.00021917,2]
[330232689,1719196288863,-1006.77,0.00021917,2]
[330232690,1719196288881,-171.23895023,0.00021917,2]
[330232691,1719196288901,-2425.99,0.00021917,2]
[330232692,1719196288917,-3129.8,0.00021917,2]
[330232693,1719196288934,-2425.99,0.00021917,2]
[330232694,1719196288950,-3129.8,0.00021917,2]
[330232695,1719196288967,-1006.77,0.00021917,2]
[330232696,1719196288984,-3129.8,0.00021917,2]
[330232697,1719196289004,-2425.99,0.00021917,2]
[330232698,1719196289018,-500.0,0.00021917,2]
[330232699,1719196289033,-1006.77,0.00021917,2]
[330232700,1719196289049,-3129.8,0.00021917,2]
[330232701,1719196289066,-2425.99,0.00021917,2]
[330232702,1719196289081,-500.0,0.00021917,2]
[330232703,1719196289095,-1006.77,0.00021917,2]
[330232704,1719196289113,-506.82079705,0.00021917,2]
[330232705,1719196289128,-3129.8,0.00021917,2]
[330232706,1719196289144,-500.0,0.00021917,2]
[330232707,1719196289164,-1006.77,0.00021917,2]
[330232708,1719196289179,-3129.8,0.00021917,2]
[330232709,1719196289195,-500.0,0.00021917,2]
[330232710,1719196289210,-2425.99,0.00021917,2]
[330232711,1719196289226,-1006.77,0.00021917,2]
[330232712,1719196289241,-500.0,0.00021917,2]
[330232713,1719196289256,-503.40034538,0.00021917,2]
[330232714,1719196289271,-500.0,0.00021917,2]
[330232715,1719196289287,-2425.99,0.00021917,2]
[330232716,1719196289302,-500.0,0.00021917,2]
[330232717,1719196289318,-1006.77,0.00021917,2]
[330232718,1719196289334,-3129.8,0.00021917,2]
[330232719,1719196289350,-500.0,0.00021917,2]
[330232720,1719196289366,-2425.99,0.00021917,2]
[330232721,1719196289382,-510.65379289,0.00021917,2]
[330232722,1719196289397,-1006.77,0.00021917,2]
[330232723,1719196289412,-500.0,0.00021917,2]
[330232724,1719196289427,-3129.8,0.00021917,2]
[330232725,1719196289443,-2425.99,0.00021917,2]
[330232726,1719196289458,-1006.77,0.00021917,2]
[330232727,1719196289474,-500.0,0.00021917,2]
[330232728,1719196289489,-2425.99,0.00021917,2]
[330232729,1719196289504,-1006.77,0.00021917,2]
[330232730,1719196289520,-500.0,0.00021917,2]
[330232731,1719196289536,-500.0,0.00021917,2]
[330232732,1719196289551,-3129.8,0.00021917,2]
[330232733,1719196289566,-2425.99,0.00021917,2]
[330232734,1719196289582,-500.0,0.00021917,2]
[330232735,1719196289597,-1006.77,0.00021917,2]
[330232736,1719196289613,-500.0,0.00021917,2]
[330232737,1719196289628,-500.0,0.00021917,2]
[330232738,1719196289644,-3129.8,0.00021917,2]
[330232739,1719196289661,-2425.99,0.00021917,2]
[330232740,1719196289678,-500.0,0.00021917,2]
[330232741,1719196289690,-1006.77,0.00021917,2]
[330232742,1719196289700,-500.0,0.00021917,2]
[330232743,1719196289710,-500.0,0.00021917,2]
[330232744,1719196289720,-3129.89316473,0.00021917,2]
[330232745,1719196289730,-500.0,0.00021917,2]
[330232746,1719196289740,-2425.99,0.00021917,2]
[330232747,1719196289750,-1615.2,0.00021917,2]
[330232748,1719196289759,-1006.77,0.00021917,2]
[330232749,1719196289773,-497.0589086,0.00021917,2]
[330232750,1719196289782,-500.0,0.00021917,2]
[330232751,1719196289792,-1615.2,0.00021917,2]
[330232752,1719196289801,-2425.99,0.00021917,2]
[330232753,1719196289812,-1006.77,0.00021917,2]
[330232754,1719196289822,-500.0,0.00021917,2]
[330232755,1719196289832,-500.0,0.00021917,2]
[330232756,1719196289841,-1615.2,0.00021917,2]
[330232757,1719196289853,-2425.99,0.00021917,2]
[330232758,1719196289863,-1006.77,0.00021917,2]
[330232759,1719196289874,-500.0,0.00021917,2]
[330232760,1719196289884,-397.9041387,0.00021917,2]
[330232761,1719196289894,-500.0,0.00021917,2]
[330232762,1719196289904,-1615.2,0.00021917,2]
[330232763,1719196289913,-2425.99,0.00021917,2]
[330232764,1719196289923,-500.0,0.00021917,2]
[330232765,1719196289933,-1615.2,0.00021917,2]
[330232766,1719196289943,-2425.99,0.00021917,2]
[330232767,1719196289952,-1006.77,0.00021917,2]
[330232768,1719196289962,-500.0,0.00021917,2]
[330232769,1719196289973,-2425.99,0.00021917,2]
[330232770,1719196289982,-1615.2,0.00021917,2]
[330232771,1719196289992,-1006.77,0.00021917,2]
[330232772,1719196290002,-500.0,0.00021917,2]
[330232773,1719196290012,-500.0,0.00021917,2]
[330232774,1719196290024,-1615.2,0.00021917,2]
[330232775,1719196290035,-1006.77,0.00021917,2]
[330232776,1719196290044,-500.0,0.00021917,2]
[330232777,1719196290056,-500.0,0.00021917,2]
[330232778,1719196290066,-2425.99,0.00021917,2]
[330232779,1719196290075,-1615.2,0.00021917,2]
[330232780,1719196290084,-500.0,0.00021917,2]
[330232781,1719196290434,-1006.77,0.00021917,2]
[330232782,1719196290479,-500.0,0.00021917,2]
[330232783,1719196290500,-500.0,0.00021917,2]
[330232784,1719196290518,-2425.99,0.00021917,2]
[330232785,1719196290530,-511.19344127,0.00021917,2]
[330232786,1719196290540,-1006.77,0.00021917,2]
[330232787,1719196290550,-1615.2,0.00021917,2]
[330232788,1719196290560,-500.0,0.00021917,2]
[330232789,1719196290569,-500.0,0.00021917,2]
[330232790,1719196290579,-2425.99,0.00021917,2]
[330232791,1719196290588,-1615.2,0.00021917,2]
[330232792,1719196290598,-1006.87041776,0.00021917,2]
[330232793,1719196290607,-500.0,0.00021917,2]
[330232794,1719196290616,-500.0,0.00021917,2]
[330232795,1719196290625,-2425.99,0.00021917,2]
[330232796,1719196290635,-500.0,0.00021917,2]
[330232797,1719196290644,-2425.99,0.00021917,2]
[330232798,1719196290653,-500.0,0.00021917,2]
[330232799,1719196290663,-1615.2,0.00021917,2]
[330232800,1719196290672,-586.25,0.00021917,2]
[330232801,1719196290681,-500.0,0.00021917,2]
[330232802,1719196290690,-174.39869455,0.00021917,2]
[330232803,1719196290700,-2426.04952365,0.00021917,2]
[330232804,1719196290709,-1615.2,0.00021917,2]
[330232805,1719196290719,-202.23831117,0.00021917,2]
[330232806,1719196290728,-586.25,0.00021917,2]
[330232807,1719196290738,-204.58283093,0.00021917,2]
[330232808,1719196290747,-1615.2,0.00021917,2]
[330232809,1719196290756,-586.25,0.00021917,2]
[330232810,1719196290767,-1615.2,0.00021917,2]
[330232811,1719196290779,-586.25,0.00021917,2]
[330232812,1719196290787,-1615.2,0.00021917,2]
[330232813,1719196290797,-586.25,0.00021917,2]
[330232814,1719196290806,-586.25,0.00021917,2]
[330232815,1719196290815,-30872.7,0.00021917,2]
[330232816,1719196290825,-586.25,0.00021917,2]
[330232817,1719196290834,-1615.2,0.00021917,2]
[330232818,1719196290844,-30872.7,0.00021917,2]
[330232819,1719196290856,-1615.2,0.00021917,2]
[330232820,1719196290866,-586.25,0.00021917,2]
[330232821,1719196290876,-30872.7,0.00021917,2]
[330232822,1719196290886,-1615.2,0.00021917,2]
[330232823,1719196290895,-586.25,0.00021917,2]
[330232824,1719196290905,-505.79163118,0.00021917,2]
[330232825,1719196290915,-30872.7,0.00021917,2]
[330232826,1719196290924,-500.0,0.00021917,2]
[330232827,1719196290934,-586.25,0.00021917,2]
[330232828,1719196290943,-1615.2,0.00021917,2]
[330232829,1719196290952,-3974.73,0.00021917,2]
[330232830,1719196290962,-30872.7,0.00021917,2]
[330232831,1719196290971,-500.0,0.00021917,2]
[330232832,1719196290981,-1615.2,0.00021917,2]
[330232833,1719196290990,-586.25,0.00021917,2]
[330232834,1719196290999,-1058.41503982,0.00021917,2]
[330232835,1719196291131,-309.34901845,0.00021917,2]
[330232836,1719196291142,-935.21484251,0.00021917,2]
[330232837,1719196291154,-1401.6000012,0.00021917,2]
[330232838,1719196291707,-339.508947,0.00021893,2]
[330232839,1719196291717,-270.15109802,0.00021917,2]
[330232840,1719196291727,-500.0,0.00021917,2]
[330232841,1719196291736,-229.35799215,0.00021917,2]
[330232842,1719196291748,-1103.569346,0.00021917,2]
[330232843,1719196291759,-1335.57189952,0.00021917,2]
[330232860,1719196791013,248.82,0.00018849,30]
[330233108,1719197361776,228.08,0.00018849,30]
[330233110,1719197435098,-155.00619628,0.00011,2]
[330233112,1719197435108,-100.48939638,0.00013196,2]
[330233114,1719197435120,-276.52,0.00013196,2]
[330233116,1719197435136,-4141.17377943,0.00013196,2]
[330233119,1719197435146,-157.87105774,0.00013937,2]
[330233120,1719197435155,-163.68366832,0.00013937,2]
[330233122,1719197435165,-218.32396431,0.00013937,2]
[330233123,1719197435175,-408.71429855,0.00013996,2]
[330233124,1719197435184,-150.0,0.00013999,2]
[330233125,1719197435193,-1327.3531795,0.00014,2]
[330233126,1719197435207,-2901.4,0.00014,2]
[330233127,1719197435223,-455.85444,0.00014,2]
[330233128,1719197435234,-432.000004,0.00014,2]
[330233129,1719197435246,-648.0,0.00014,2]
[330233130,1719197435256,-6093.75302468,0.00014,2]
[330233131,1719197435268,-703.78199212,0.00014,2]
[330233132,1719197435279,-1105.0,0.00014,2]
[330233133,1719197435290,-13919.45188348,0.00014,2]
[330233134,1719197435301,-280.548,0.00014,2]
[330233137,1719197438643,-6516.51,0.00014,2]
[330233140,1719197438655,-1662.75491248,0.00014,2]
[330233141,1719197438667,-650.84765446,0.00014,2]
[330233144,1719197438678,-1705.4,0.00014,2]
[330233147,1719197438690,-1092.6999,0.00014,2]
[330233149,1719197438702,-8291.16952772,0.00014,2]
[330233152,1719197439169,-1428.9699897,0.00014,2]
[330233155,1719197439180,-404.09846981,0.00014,2]
[330233157,1719197439191,-10157.13183999,0.00014,2]
[330233159,1719197439203,-2320.31359596,0.00014,2]
[330233161,1719197439215,-6476.8,0.00014,2]
[330233331,1719197440964,-158326.87962896,0.00014,2]
[330233335,1719197440978,-453759.51509111,0.00014,2]
[330233337,1719197440993,-2326.50000047,0.00014,2]
[330233340,1719197441009,-5348.04718558,0.00014,2]
[330233388,1719197441447,-2295.35203296,0.00014,2]
[330233390,1719197441458,-609.89933194,0.00014,2]
[330233392,1719197441469,-533.54209763,0.00014,2]
[330233394,1719197441481,-3675.17039227,0.00014,2]
[330233447,1719197445002,-1149383.06961457,0.00014,2]
[330233448,1719197445016,-633.24,0.00014,2]
[330233449,1719197445029,-9845.86782378,0.00014,2]
[330233451,1719197445042,-7160.00000002,0.00014,2]
[330233487,1719197447026,-505.76656729,0.00014,2]
[330233526,1719197447526,-495.19619485,0.00014,2]
[330233535,1719197743819,204.0,0.00026,120]
[330233538,1719197908814,209.07,0.00018849,30]
[330233691,1719198588602,191.64,0.00018849,30]
[330233692,1719198633147,-239.2473,0.000139,2]
[330233694,1719198633156,-164.3843,0.000139,2]
[330233696,1719198633168,-10.6152,0.000139,2]
[330233698,1719198633178,-163.68366831,0.000139,2]
[330233701,1719198633188,-504.78947943,0.000139,2]
[330233705,1719198633197,-1017.91165226,0.0001399,2]
[330233707,1719198633208,-362.76274164,0.0001399,2]
[330233709,1719198633220,-566.978,0.0001399,2]
[330233710,1719198633231,-1109.32799612,0.0001399,2]
[330233711,1719198633242,-743.27529315,0.0001399,2]
[330233712,1719198633253,-2057.51415276,0.0001399,2]
[330233713,1719198633263,-151.81272977,0.00013999,2]
[330233714,1719198633272,-312966.67311745,0.00014,2]
[330233715,1719198633286,-17021.64800015,0.00014,2]
[330233716,1719198633297,-1265.04262178,0.00014,2]
[330233717,1719198633937,-1355.55964251,0.00014,2]
[330233757,1719198639420,-1259.0183075,0.00014,2]
[330233759,1719198639434,-21619.40328839,0.00014,2]
[330233761,1719198639447,-1886.88,0.00014,2]
[330233763,1719198639460,-12937.08986394,0.00014,2]
[330233764,1719198639477,-251884.0000002,0.00014,2]
[330233765,1719198639496,-2524.0,0.00014,2]
[330233766,1719198641621,-1019.38514145,0.00014,2]
[330233767,1719198644156,-371.16957795,0.00014,2]
[330233777,1719198644169,-12818.91053022,0.00014,2]
[330233783,1719198644181,-273.8630268,0.00014,2]
[330233789,1719198644192,-1260.0,0.00014,2]
[330233793,1719198644204,-3150.0,0.00014,2]
[330233815,1719198645276,-582.5254763,0.00014,2]
[330233817,1719198645288,-297.28505464,0.00014,2]
[330233818,1719198645302,-628909.9999996,0.00014,2]
[330233974,1719198648802,-681.14,0.00014,2]
[330233977,1719198648813,-851.075,0.00014,2]
[330233979,1719198648824,-1573.925,0.00014,2]
[330233981,1719198648835,-3150.0,0.00014,2]
[330233985,1719198649361,-629.7,0.00014,2]
[330233989,1719199131050,175.67,0.00018849,30]
[330233991,1719199289905,156.062411,0.00025,72]
[330233992,1719199304609,161.062311,0.00025,73]
[330233997,1719199410051,159.64,0.0002545,120]
[330234001,1719199517616,10950.424123,0.0001,2]
[330234003,1719199554028,332.29222082,0.0001,2]
[330234004,1719199555414,1365.75745251,0.0001,2]
[330234005,1719199564916,466.80175883,0.0001,2]
[330234006,1719199568592,412.02786336,0.0001,2]
[330234007,1719199579047,290.34583489,0.0001,2]
[330234008,1719199591081,287.55521791,0.0001,2]
[330234009,1719199666614,1365.75745251,0.0001,2]
[330234010,1719199678498,161.03,0.00018849,30]
[330234011,1719199688054,212.38576315,0.0001,2]
[330234013,1719199780417,1365.75745251,0.0001,2]
[330234014,1719199795419,1365.75745251,0.0001,2]
[330234015,1719199802842,150.0,0.0001,2]
[330234016,1719199803019,150.75800545,0.0001,2]
[330234017,1719199832066,-903.55095595,0.00011899,2]
[330234021,1719199832078,-518.40021227,0.00011899,2]
[330234023,1719199832096,-582.19541653,0.00011899,2]
[330234025,1719199832106,-3538.8761192,0.00011899,2]
[330234027,1719199832118,-16065.1519791,0.00011899,2]
[330234029,1719199832128,-462.98824518,0.00011971,2]
[330234031,1719199832137,-155.0,0.00011991,2]
[330234032,1719199832147,-589.74225262,0.00011991,2]
[330234033,1719199832156,-3774.0,0.00011998,2]
[330234035,1719199832166,-156.04,0.00013389,2]
[330234037,1719199832175,-476.41464403,0.000139,2]
[330234038,1719199832185,-1272.3113,0.000139,2]
[330234039,1719199832195,-563.1635354,0.000139,2]
[330234040,1719199832612,-831.21189569,0.000139,2]
[330234042,1719199832623,-76200.44636891,0.000139,2]
[330234044,1719199832633,-10053.6473,0.000139,2]
[330234046,1719199832642,-168.11170436,0.000139,2]
[330234047,1719199832652,-3054.54170797,0.000139,2]
[330234048,1719199832662,-3391.3785,0.000139,2]
[330234049,1719199832672,-155.93830069,0.000139,2]
[330234050,1719199832681,-180.05203518,0.000139,2]
[330234051,1719199832691,-673.05263924,0.000139,2]
[330234052,1719199832700,-179.2835893,0.000139,2]
[330234053,1719199832710,-1286.43927606,0.00013922,2]
[330234054,1719199832719,-20004.85541548,0.00013989,2]
[330234055,1719199832728,-59321.08340577,0.00014,2]
[330234056,1719199832740,-548.70135202,0.00014,2]
[330234057,1719199832752,-547.43728168,0.00014,2]
[330234058,1719199832762,-1421.18809713,0.00014,2]
[330234059,1719199832773,-558.15546194,0.00014,2]
[330234060,1719199832784,-1266.60175907,0.00014,2]
[330234061,1719199832795,-2142.48428039,0.00014,2]
[330234062,1719199832806,-24136.83809976,0.00014,2]
[330234063,1719199832817,-1641.7,0.00014,2]
[330234064,1719199832827,-1916.80238943,0.00014,2]
[330234065,1719199832838,-1178.45951756,0.00014,2]
[330234066,1719199832849,-471.61542879,0.00014,2]
[330234067,1719199832860,-4940.190102,0.00014,2]
[330234068,1719199832872,-2532.67457983,0.00014,2]
[330234069,1719199832885,-1431.779034,0.00014,2]
[330234070,1719199832896,-1294.32098164,0.00014,2]
[330234071,1719199832907,-1133.16129937,0.00014,2]
[330234072,1719199832918,-10078.06183288,0.00014,2]
[330234073,1719199832930,-9616.93811078,0.00014,2]
[330234074,1719199832942,-12182.78132822,0.00014,2]
[330234075,1719199832953,-134260.13848377,0.00014,2]
[330234076,1719199832965,-1005.16914109,0.00014,2]
[330234077,1719199832976,-4384.90963218,0.00014,2]
[330234078,1719199832987,-296.5600783,0.00014,2]
[330234079,1719199832998,-574.25050338,0.00014,2]
[330234080,1719199833009,-288.51537332,0.00014,2]
[330234081,1719199833020,-1181.42468244,0.00014,2]
[330234082,1719199833031,-14418.30152426,0.00014,2]
[330234083,1719199833042,-5409.28786295,0.00014,2]
[330234144,1719199838662,-13464.44967506,0.00011899,2]
[330234146,1719199838674,-3511.99297866,0.00011899,2]
[330234167,1719199838893,-2627.58544458,0.00011899,2]
[330234168,1719199838904,-326.025,0.00012121,2]
[330234169,1719199838914,-493.4705516,0.00013989,2]
[330234170,1719199838924,-42.94268254,0.00014,2]
[330234171,1719199838936,-1485.99999982,0.00014,2]
[330234172,1719199838948,-1189.99134495,0.00014,2]
[330234173,1719199838960,-622.83715495,0.00014,2]
[330234174,1719199838974,-2835.95935006,0.00014,2]
[330234175,1719199838986,-980.81520194,0.00014,2]
[330234176,1719199838997,-16592.60688411,0.00014,2]
[330234177,1719199839009,-286.30969865,0.00014,2]
[330234178,1719199839020,-556.34975306,0.00014,2]
[330234179,1719199839032,-1340.01178555,0.00014,2]
[330234180,1719199839043,-24502.52742625,0.00014,2]
[330234181,1719199839056,-456.44899159,0.00014,2]
[330234182,1719199839068,-25438.78120311,0.00014,2]
[330234183,1719199839079,-609.55481835,0.00014,2]
[330234184,1719199839091,-1928.236895,0.00014,2]
[330234185,1719199839104,-420.25335452,0.00014,2]
[330234192,1719199840791,-739.0440592,0.00014,2]
[330234194,1719199840804,-1480.01989755,0.00014,2]
[330234195,1719199840816,-3471.101,0.00014,2]
[330234196,1719199840827,-2377.96022647,0.00014,2]
[330234197,1719199840839,-568.278567,0.00014,2]
[330234198,1719199840853,-73589.22838467,0.00014,2]
[330234251,1719199844473,-1000.0,0.00014,2]
[330234259,1719199844485,-18693.3461744,0.00014,2]
[330234264,1719199844497,-31543.62233501,0.00014,2]
[330234282,1719199845082,-985.3744149,0.00014,2]
[330234285,1719199845094,-863987.47364257,0.00014,2]
[330234318,1719199846937,-804.75239108,0.000139,2]
[330234319,1719199846947,-834.90048712,0.00014,2]
[330234333,1719199943657,156.98,0.0002503,120]
[330234334,1719200035340,4009.64407415,9e-05,2]
[330234335,1719200070328,219.0,0.0001399,30]
[330234336,1719200070452,2706.59214029,6.94e-05,2]
[330234337,1719200218529,161.03,0.00018849,30]
[330234338,1719200555794,760.32,0.00026,120]
[330234340,1719200757310,161.03,0.00018849,30]
[330234360,1719201031959,-313.25967619,0.00012121,2]
[330234361,1719201031969,-5021.87987346,0.0001305,2]
[330234362,1719201031978,-155.93830064,0.0001379,2]
[330234363,1719201031987,-180.05203517,0.00013799,2]
[330234364,1719201031997,-246213.31489642,0.000138,2]
[330234365,1719201032006,-1889.17808,0.0001386,2]
[330234366,1719201032016,-3061.5005,0.000139,2]
[330234367,1719201032025,-2799.99656563,0.000139,2]
[330234368,1719201032035,-536.50159406,0.000139,2]
[330234369,1719201032044,-448.7017595,0.000139,2]
[330234370,1719201032054,-253.90432169,0.00013976,2]
[330234371,1719201032063,-157.02434713,0.00013988,2]
[330234372,1719201032072,-25854.98707443,0.00014,2]
[330234373,1719201032113,-491.78097811,0.00014,2]
[330234374,1719201032123,-14758.376858,0.00014,2]
[330234375,1719201032240,-6385.75602073,0.00014,2]
[330234376,1719201032252,-500.0,0.00014,2]
[330234377,1719201032322,-442.20168942,0.00014,2]
[330234378,1719201032333,-14891.42473928,0.00014,2]
[330234380,1719201032344,-18570.756,0.00014,2]
[330234381,1719201032359,-13037.42092,0.00014,2]
[330234382,1719201032372,-6592.7144032,0.00014,2]
[330234383,1719201032385,-16864.68024115,0.00014,2]
[330234384,1719201032396,-4265.1967325,0.00014,2]
[330234400,1719201037835,-338.09098558,0.00014,2]
[330234401,1719201037847,-27487.12191111,0.00014,2]
[330234402,1719201037858,-601.78346987,0.00014,2]
[330234403,1719201037870,-3091.91787702,0.00014,2]
[330234404,1719201037885,-10181.18883986,0.00014,2]
[330234405,1719201037927,-302.52178472,0.00014,2]
[330234406,1719201037970,-1520.60108001,0.00014,2]
[330234407,1719201037981,-11991.44661546,0.00014,2]
[330234408,1719201038010,-35713.03279553,0.00014,2]
[330234409,1719201038045,-1063.71192717,0.00014,2]
[330234410,1719201038082,-3121.61111413,0.00014,2]
[330234413,1719201040057,-304.184176,0.00014,2]
[330234414,1719201040073,-491.23337385,0.00014,2]
[330234415,1719201040085,-573.27624306,0.00014,2]
[330234416,1719201040106,-253.90432169,0.00013933,2]
[330234417,1719201040116,-206.70040113,0.00014,2]
[330234418,1719201040129,-384.644286,0.00014,2]
[330234419,1719201040141,-527.39556223,0.00014,2]
[330234420,1719201040156,-332.98441238,0.00014,2]
[330234421,1719201040167,-555.29,0.00014,2]
[330234422,1719201040179,-934.84914109,0.00014,2]
[330234423,1719201040191,-1300.47673645,0.00014,2]
[330234424,1719201040363,-11505.8443114,0.00014,2]
[330234425,1719201040376,-643.79110019,0.00014,2]
[330234426,1719201040392,-468.39336769,0.00014,2]
[330234427,1719201040427,-119371.9780502,0.00014,2]
[330234428,1719201040438,-1292.76814614,0.00014,2]
[330234429,1719201040450,-23305.43350431,0.00014,2]
[330234445,1719201043278,-1753.95735098,0.00014,2]
[330234446,1719201043291,-1144.36375668,0.00014,2]
[330234447,1719201043303,-790.18897835,0.00014,2]
[330234448,1719201043314,-2391.02273755,0.00014,2]
[330234449,1719201043328,-403.22850324,0.00014,2]
[330234450,1719201043340,-412.74691942,0.00014,2]
[330234451,1719201043353,-973.369812,0.00014,2]
[330234452,1719201043367,-1070.09403584,0.00014,2]
[330234453,1719201043379,-3897.75786016,0.00014,2]
[330234454,1719201043391,-2676.37837437,0.00014,2]
[330234455,1719201043404,-3799.999993,0.00014,2]
[330234456,1719201043415,-2743.43994,0.00014,2]
[330234457,1719201043427,-663.41182325,0.00014,2]
[330234458,1719201043446,-24430.83809279,0.00014,2]
[330234459,1719201043498,-302.15111065,0.00014,2]
[330234460,1719201043510,-1906.74368181,0.00014,2]
[330234461,1719201043536,-489.29187735,0.00014,2]
[330234462,1719201043556,-1276.4995102,0.00014,2]
[330234463,1719201043569,-695.84866301,0.00014,2]
[330234468,1719201045964,-4903.45504488,0.00014,2]
[330234469,1719201045978,-20757.64335188,0.00014,2]
[330234470,1719201045991,-1789.07405067,0.00014,2]
[330234471,1719201046004,-117531.40828432,0.00014,2]
[330234472,1719201046016,-817.82184304,0.00014,2]
[330234473,1719201046091,-1033.59720923,0.00014,2]
[330234474,1719201046104,-965.04287005,0.00014,2]
[330234475,1719201046118,-4506.06258621,0.00014,2]
[330234476,1719201046132,-314.22602409,0.00014,2]
[330234477,1719201046144,-404.4192757,0.00014,2]
[330234478,1719201046162,-9491.1,0.00014,2]
[330234479,1719201046175,-76425.31405427,0.00014,2]
[330234480,1719201046261,-276.90558802,0.00014,2]
[330234481,1719201046277,-989.886814,0.00014,2]
[330234489,1719201059748,159.64,0.00024915,120]
[330234491,1719201274137,161.03,0.00018849,30]
[330234496,1719201673731,159.22,0.00024693,120]
[330234502,1719201804083,161.03,0.00018849,30]
[330234522,1719202232753,-300.0,0.00013699,2]
[330234523,1719202232763,-1233.16988502,0.000137,2]
[330234524,1719202232774,-10808.08059513,0.000137,2]
[330234525,1719202232785,-152.53731985,0.000137,2]
[330234526,1719202232794,-166.25517445,0.00013704,2]
[330234527,1719202232804,-155.57829822,0.00013704,2]
[330234528,1719202232813,-302.27076443,0.00013704,2]
[330234529,1719202232822,-170.24611444,0.000139,2]
[330234530,1719202232834,-324.8804016,0.000139,2]
[330234531,1719202232843,-179.24804165,0.000139,2]
[330234532,1719202232852,-1838.71968117,0.000139,2]
[330234533,1719202232863,-732.10144154,0.000139,2]
[330234534,1719202232889,-103.42593152,0.000139,2]
[330234535,1719202232898,-488.15958969,0.000139,2]
[330234536,1719202232908,-84.51447879,0.000139,2]
[330234537,1719202232919,-214.62002753,0.000139,2]
[330234538,1719202232929,-996.3359,0.000139,2]
[330234539,1719202232938,-357.66772936,0.000139,2]
[330234540,1719202232947,-426.44690122,0.00013918,2]
[330234541,1719202232956,-589.0,0.00013978,2]
[330234542,1719202232965,-731.10932537,0.00013978,4]
[330234543,1719202232977,-496.29675969,0.00013978,4]
[330234544,1719202233004,-1480.59580239,0.00013978,4]
[330234545,1719202233014,-1608.64420003,0.00013999,2]
[330234546,1719202233024,-1908.67813574,0.00014,2]
[330234547,1719202233076,-766.70047964,0.00014,2]
[330234548,1719202233141,-682.02507917,0.000139,2]
[330234549,1719202233151,-1510.21530163,0.00014,2]
[330234550,1719202233162,-752.35031756,0.00014,2]
[330234551,1719202233173,-2101.31285773,0.00014,2]
[330234563,1719202237983,-6046.96421405,0.00014,2]
[330234564,1719202237996,-33786.12977595,0.00014,2]
[330234565,1719202238173,-1800.0,0.00014,2]
[330234751,1719202240070,-1567.34223573,0.00014,2]
[330234765,1719202240194,-543238.12319655,0.00014,2]
[330234781,1719202242381,-261.82197191,0.00014,2]